bitfinex/quotes_BTCUSD_20220101
["timestamp","ask_amount","ask_price","bid_price","bid_amount"]
[1641081318818,0.00023736,47715.0,47712.0,0.99685252]
[1641081319010,0.0002191,47714.0,47712.0,0.99685252]
[1641081319276,0.59765611,47734.0,47712.0,0.99685252]
[1641081319277,0.77768706,47754.0,47750.0,0.20467527]
[1641081319474,0.052758,47764.0,47758.0,0.13325315]
[1641081319676,0.052758,47764.0,47759.0,0.687248]
[1641081319677,0.0002,47762.0,47759.0,0.687248]
[1641081319875,0.0018,47769.0,47761.0,0.00725152]
[1641081320072,0.0001,47787.0,47766.0,2.13]
[1641081320073,0.0003,47771.0,47766.0,2.13]
[1641081320273,0.0004,47773.0,47770.0,0.60999914]
[1641081320274,0.0003,47772.0,47770.0,0.60999914]
[1641081320473,0.0003,47772.0,47760.0,0.104656]
[1641081320474,0.0003,47772.0,47766.0,0.0012511]
[1641081320674,0.0003,47772.0,47755.0,0.37978685]
[1641081320675,0.33697,47771.0,47759.0,0.0212516]
[1641081320872,0.0003,47772.0,47759.0,0.0210516]
[1641081321074,0.00102244,47770.0,47756.0,0.11442303]
[1641081321272,0.00102244,47770.0,47758.0,0.13295315]
[1641081321476,0.33175848,47769.0,47758.0,0.13275315]
[1641081321672,0.00100418,47769.0,47759.0,0.31766968]
[1641081321872,0.00098592,47768.0,47759.0,0.31756968]
[1641081322072,0.00098592,47768.0,47767.0,2.23]
[1641081322272,0.0003,47772.0,47767.0,2.46687]
[1641081322472,0.0003,47772.0,47768.0,0.33697]
[1641081322671,0.0010407,47771.0,47769.0,0.24439489]
[1641081322872,0.0010407,47771.0,47759.0,0.01894988]
[1641081323117,0.0003,47772.0,47759.0,0.01874988]
[1641081323119,0.00102244,47770.0,47759.0,0.01874988]
[1641081323316,0.00102244,47770.0,47758.0,0.13275315]
[1641081323521,0.00100418,47769.0,47768.0,0.02132478]
[1641081323716,0.39702384,47769.0,47768.0,0.02132478]
[1641081323924,1.39232299,47769.0,47768.0,0.02122478]
[1641081324324,1.39232299,47769.0,47768.0,0.02102478]
[1641081324526,1.34295667,47769.0,47768.0,0.02102478]
[1641081324726,0.0001,47766.0,47764.0,0.00913811]
[1641081324927,0.336974,47765.0,47764.0,0.00913811]
[1641081325126,0.33790515,47765.0,47764.0,0.00903811]
[1641081325327,0.33790515,47765.0,47764.0,0.00893811]
[1641081325726,0.33790515,47765.0,47756.0,0.11442303]
[1641081325727,0.13265315,47758.0,47756.0,0.11442303]
[1641081325928,0.25392398,47748.0,47747.0,0.56958186]
[1641081326329,0.88383846,47748.0,47741.0,0.56958186]
[1641081326529,0.88383846,47748.0,47736.0,0.7957088]
[1641081326530,0.33560325,47748.0,47736.0,0.7957088]
[1641081326770,0.4180826,47744.0,47737.0,0.336974]
[1641081326967,0.4180826,47744.0,47734.0,0.17770215]
[1641081326968,0.4180826,47744.0,47734.0,0.12534079]
[1641081327168,0.00052948,47743.0,47736.0,0.56958186]
[1641081327571,0.00051122,47742.0,47737.0,0.01848213]
[1641081327770,0.23819538,47742.0,47737.0,0.01848213]
[1641081327971,0.00049296,47741.0,47737.0,0.01848213]
[1641081328170,0.00049296,47741.0,47737.0,0.01348213]
[1641081328370,0.0004747,47740.0,47737.0,0.01348213]
[1641081328669,0.33743044,47739.0,47736.0,0.01924495]
[1641081329069,0.00043819,47738.0,47736.0,0.01924495]
[1641081329274,0.336974,47737.0,47736.0,0.01924495]
[1641081329469,0.33739393,47737.0,47736.0,0.01924495]
[1641081329668,0.33739393,47737.0,47734.0,0.12534079]
[1641081329871,0.37523455,47736.0,47734.0,0.12534079]
[1641081330069,0.336974,47735.0,47734.0,0.12534079]
[1641081330368,0.62744363,47735.0,47734.0,0.12534079]
[1641081330608,0.65434681,47735.0,47734.0,0.12534079]
[1641081330806,0.33735741,47735.0,47734.0,0.12534079]
[1641081331607,0.00038341,47735.0,47734.0,0.12534079]
[1641081331813,3.41e-06,47735.0,47734.0,0.82275019]
[1641081332006,0.02112186,47735.0,47734.0,0.82275019]
[1641081332207,0.02112186,47735.0,47734.0,0.46231479]
[1641081332410,0.02112186,47735.0,47734.0,1.35534079]
[1641081332609,0.02112186,47735.0,47734.0,1.37483472]
[1641081332808,3.41e-06,47735.0,47734.0,1.37483472]
[1641081333308,3.41e-06,47735.0,47734.0,1.71180872]
[1641081333508,3.41e-06,47735.0,47734.0,1.73077436]
[1641081333708,3.41e-06,47735.0,47734.0,1.86128043]
[1641081333910,3.41e-06,47735.0,47734.0,1.71128043]
[1641081334110,3.41e-06,47735.0,47734.0,2.28289817]
[1641081334563,3.41e-06,47735.0,47734.0,2.3092512]
[1641081334763,3.41e-06,47735.0,47734.0,1.71347048]
[1641081334963,3.41e-06,47735.0,47734.0,1.71955753]
[1641081335165,3.41e-06,47735.0,47734.0,1.71347048]
[1641081335363,3.41e-06,47735.0,47734.0,3.9515059]
[1641081335564,8.97e-06,47738.0,47737.0,0.3422402]
[1641081335765,8.97e-06,47738.0,47737.0,0.8146471]
[1641081335964,8.97e-06,47738.0,47737.0,0.9646471]
[1641081336163,8.97e-06,47738.0,47737.0,1.01292078]
[1641081336566,8.97e-06,47738.0,47737.0,1.03102833]
[1641081336765,8.97e-06,47738.0,47737.0,2.12074957]
[1641081337369,8.97e-06,47738.0,47737.0,1.69429013]
[1641081337668,8.97e-06,47738.0,47737.0,1.61596018]
[1641081337865,8.97e-06,47738.0,47737.0,1.26087863]
[1641081338106,8.97e-06,47738.0,47737.0,1.21260495]
[1641081338307,8.97e-06,47738.0,47737.0,0.02167005]
[1641081338506,8.97e-06,47738.0,47737.0,0.04171846]
[1641081338705,0.37418254,47738.0,47737.0,0.02004841]
[1641081339808,0.39294884,47738.0,47734.0,0.12534079]
[1641081340106,0.32741756,47737.0,47734.0,0.12534079]
[1641081340607,0.39294884,47738.0,47734.0,0.12534079]
[1641081340810,0.3743249,47738.0,47734.0,0.12534079]
[1641081341009,0.39389914,47738.0,47734.0,0.12534079]
[1641081341875,0.3743249,47738.0,47734.0,0.12534079]
[1641081342073,0.39341767,47738.0,47734.0,0.12534079]
[1641081342874,0.39624315,47738.0,47734.0,0.12534079]
[1641081343874,0.39359953,47738.0,47734.0,0.12534079]
[1641081344779,0.3743249,47738.0,47734.0,0.12534079]
[1641081344976,0.39339604,47738.0,47734.0,0.12034079]
[1641081345632,0.29711659,47735.0,47734.0,0.12034079]
[1641081345834,0.39339604,47738.0,47734.0,0.12034079]
[1641081346233,0.38839604,47738.0,47734.0,0.12034079]
[1641081346432,0.3693249,47738.0,47734.0,0.12034079]
[1641081346633,0.38732536,47738.0,47734.0,0.12034079]
[1641081346833,0.03773149,47738.0,47734.0,0.12034079]
[1641081347234,0.03773149,47738.0,47735.0,0.336974]
[1641081347436,0.03773149,47738.0,47734.0,0.12034079]
[1641081347934,0.00014236,47738.0,47734.0,0.12034079]
[1641081348535,0.00014236,47738.0,47735.0,0.66343344]
[1641081348735,0.00014236,47738.0,47734.0,0.12034079]
[1641081349552,0.36844061,47737.0,47734.0,0.12034079]
[1641081350053,0.2644861,47735.0,47734.0,0.12034079]
[1641081350452,0.00014891,47736.0,47734.0,0.12034079]
[1641081350754,0.00014891,47736.0,47735.0,2.456974]
[1641081351557,0.00014891,47736.0,47735.0,0.336974]
[1641081351751,0.00014891,47736.0,47735.0,0.35685366]
[1641081352556,0.00014891,47736.0,47735.0,0.01987966]
[1641081352751,0.00014891,47736.0,47735.0,0.04042707]
[1641081353015,0.00014891,47736.0,47735.0,0.02054741]
[1641081353909,0.1408882,47734.0,47730.0,0.0215291]
[1641081354110,0.37885744,47733.0,47730.0,0.0215291]
[1641081354309,0.33826766,47731.0,47730.0,0.0215291]
[1641081354711,0.43826766,47731.0,47730.0,0.02162039]
[1641081354909,0.7244833,47731.0,47730.0,9.129e-05]
[1641081355212,0.512403,47730.0,47729.0,0.00010954]
[1641081355408,0.389377,47730.0,47729.0,0.00010954]
[1641081356210,0.336974,47730.0,47729.0,0.00010954]
[1641081356612,0.00129366,47731.0,47729.0,0.00010954]
[1641081356849,0.00129366,47731.0,47725.0,0.10018258]
[1641081356850,0.01918417,47731.0,47725.0,0.10018258]
[1641081357050,0.01918417,47731.0,47726.0,0.336974]
[1641081357252,0.00014891,47736.0,47730.0,0.436974]
[1641081357452,8.91e-06,47736.0,47735.0,0.00125065]
[1641081357650,8.91e-06,47736.0,47735.0,0.78973681]
[1641081357853,8.91e-06,47736.0,47735.0,0.83085661]
[1641081358050,8.91e-06,47736.0,47735.0,1.03085661]
[1641081358451,8.91e-06,47736.0,47735.0,1.6022993]
[1641081358850,8.91e-06,47736.0,47735.0,1.47113509]
[1641081359252,8.91e-06,47736.0,47735.0,1.57113509]
[1641081359854,8.91e-06,47736.0,47735.0,1.59096918]
[1641081360052,8.91e-06,47736.0,47735.0,1.57213339]
[1641081360253,8.91e-06,47736.0,47735.0,1.0006907]
[1641081360520,8.91e-06,47736.0,47735.0,1.1506907]
[1641081360703,8.91e-06,47736.0,47735.0,1.47213339]
[1641081360704,0.00013619,47736.0,47735.0,1.47213339]
[1641081361006,0.00013619,47736.0,47735.0,1.42196166]
[1641081361203,0.00013619,47736.0,47735.0,1.22278551]
[1641081361404,0.00013619,47736.0,47735.0,0.9293297]
[1641081361803,0.00013619,47736.0,47735.0,0.37736087]
[1641081362003,0.00013619,47736.0,47735.0,0.35644786]
[1641081362206,0.00013619,47736.0,47735.0,0.65244507]
[1641081362407,0.00013619,47736.0,47735.0,0.65635966]
[1641081362605,0.21013619,47736.0,47735.0,0.65635966]
[1641081362806,0.21013619,47736.0,47735.0,0.67676571]
[1641081363009,0.21013619,47736.0,47735.0,0.65729185]
[1641081363205,0.21013619,47736.0,47735.0,1.42729185]
[1641081363606,0.21013619,47736.0,47735.0,0.65729185]
[1641081363807,0.21013619,47736.0,47735.0,0.37850363]
[1641081364007,0.21013619,47736.0,47735.0,0.35809758]
[1641081364861,0.21013619,47736.0,47735.0,0.37956167]
[1641081365060,0.21013619,47736.0,47735.0,0.35843809]
[1641081365861,0.21013619,47736.0,47735.0,0.37814645]
[1641081366060,0.21013619,47736.0,47735.0,0.35668236]
[1641081366465,0.21013619,47736.0,47735.0,0.34168236]
[1641081366662,0.21013619,47736.0,47735.0,0.01970836]
[1641081366862,0.21013619,47736.0,47735.0,0.03812559]
[1641081367065,0.21013619,47736.0,47735.0,0.56841723]
[1641081367266,0.21013619,47736.0,47735.0,0.01841723]
[1641081368010,0.21013619,47736.0,47735.0,2.13095368]
[1641081368209,0.21013619,47736.0,47735.0,2.46806768]
[1641081368905,0.21013619,47736.0,47735.0,2.48706991]
[1641081369106,0.21013619,47736.0,47735.0,2.77407326]
[1641081369909,0.21013619,47736.0,47735.0,2.79273942]
[1641081370110,0.21013619,47736.0,47735.0,2.46578016]
[1641081371010,0.21013619,47736.0,47735.0,2.48700315]
[1641081371211,0.21013619,47736.0,47735.0,2.78042161]
[1641081371863,0.21013619,47736.0,47735.0,2.79890253]
[1641081372063,0.21013619,47736.0,47735.0,2.75901338]
[1641081373465,0.21013619,47736.0,47735.0,2.77747964]
[1641081373664,0.21013619,47736.0,47735.0,2.48406118]
[1641081373865,0.21013619,47736.0,47735.0,0.37406118]
[1641081374066,0.21013619,47736.0,47735.0,1.15406118]
[1641081374266,0.21013619,47736.0,47735.0,0.337114]
[1641081374466,0.21013619,47736.0,47735.0,0.35718131]
[1641081375065,0.21013619,47736.0,47735.0,1.46718131]
[1641081375507,0.21013619,47736.0,47735.0,0.37873024]
[1641081375701,0.21013619,47736.0,47735.0,0.35866293]
[1641081375905,0.21013619,47736.0,47735.0,1.72714206]
[1641081376102,0.21013619,47736.0,47735.0,1.70559313]
[1641081376900,0.21013619,47736.0,47735.0,2.3372861]
[1641081377101,0.21013619,47736.0,47735.0,1.70380697]
[1641081378003,0.21013619,47736.0,47735.0,1.72576726]
[1641081378202,0.21013619,47736.0,47735.0,1.70407429]
[1641081379012,0.0002,47757.0,47736.0,0.19914]
[1641081379272,0.0002,47757.0,47738.0,0.1]
[1641081379471,4.32e-06,47744.0,47743.0,0.00129252]
[1641081379671,4.32e-06,47744.0,47743.0,0.55356054]
[1641081379871,0.0002,47757.0,47744.0,0.00756612]
[1641081379872,0.0001869,47754.0,47744.0,0.00756612]
[1641081380072,4.363e-05,47756.0,47754.0,2.11]
[1641081380274,4.363e-05,47756.0,47755.0,0.56325506]
[1641081380471,4.363e-05,47756.0,47755.0,0.55789184]
[1641081380673,4.363e-05,47756.0,47755.0,0.60789184]
[1641081380871,4.363e-05,47756.0,47755.0,0.60289184]
[1641081381074,4.363e-05,47756.0,47755.0,0.62249039]
[1641081381671,4.363e-05,47756.0,47755.0,0.98802732]
[1641081381873,4.363e-05,47756.0,47755.0,0.94302732]
[1641081382074,4.363e-05,47756.0,47755.0,0.40494623]
[1641081382673,4.363e-05,47756.0,47755.0,0.42421649]
[1641081382872,4.363e-05,47756.0,47755.0,0.08714249]
[1641081383321,0.33711763,47756.0,47755.0,0.04827368]
[1641081384122,0.33711763,47756.0,47755.0,0.06850694]
[1641081384321,0.58071341,47756.0,47755.0,0.06850694]
[1641081384522,0.58071341,47756.0,47754.0,0.09292]
[1641081384923,0.05237,47755.0,47754.0,0.09292]
[1641081385125,0.389444,47755.0,47754.0,0.09292]
[1641081391513,0.44181325,47755.0,47752.0,0.00117211]
[1641081391710,0.49418325,47755.0,47752.0,0.00117211]
[1641081391911,0.44361178,47754.0,47752.0,0.00117211]
[1641081392114,0.337074,47753.0,47752.0,0.00117211]
[1641081394366,0.336274,47753.0,47752.0,0.00117211]
[1641081396064,0.336274,47753.0,47752.0,2.11e-06]
[1641081396065,0.7488175,47753.0,47752.0,2.11e-06]
[1641081396269,0.052383,47751.0,47748.0,0.00919982]
[1641081396466,1.747074,47749.0,47748.0,0.00919982]
[1641081396668,1.897074,47749.0,47748.0,0.00919982]
[1641081396865,1.947074,47749.0,47748.0,0.00919982]
[1641081397066,2.27259287,47749.0,47748.0,0.00919982]
[1641081397464,2.17259287,47749.0,47748.0,0.00919982]
[1641081397665,0.91497487,47749.0,47748.0,0.00919982]
[1641081397864,0.81497487,47749.0,47748.0,0.00919982]
[1641081398126,0.71497487,47749.0,47748.0,0.00919982]
[1641081398326,0.26533235,47740.0,47736.0,0.19914]
[1641081398728,0.052377,47749.0,47739.0,0.23924363]
[1641081398927,0.0002,47757.0,47737.0,0.00031038]
[1641081398928,0.00128924,47752.0,47740.0,0.63601226]
[1641081399126,0.10479263,47756.0,47740.0,0.63626787]
[1641081399329,0.052374,47752.0,47741.0,0.00023735]
[1641081399726,0.25927351,47745.0,47741.0,0.00023735]
[1641081399927,0.33006598,47743.0,47739.0,0.05237384]
[1641081400130,0.33006598,47743.0,47738.0,0.00029212]
[1641081400328,0.33006598,47743.0,47740.0,0.00025561]
[1641081400528,0.33006598,47743.0,47738.0,0.00029212]
[1641081400728,0.33006598,47743.0,47739.0,0.337058]
[1641081400929,0.33006598,47743.0,47740.0,0.28886612]
[1641081401130,0.33006598,47743.0,47741.0,0.332058]
[1641081401331,0.33006598,47743.0,47741.0,0.00023735]
[1641081401528,0.25927351,47745.0,47742.0,0.00021909]
[1641081401754,0.25927351,47745.0,47738.0,0.00029212]
[1641081401956,0.25927351,47745.0,47739.0,0.337088]
[1641081402160,0.25927351,47745.0,47738.0,0.00029212]
[1641081403256,0.35180798,47739.0,47738.0,0.00029212]
[1641081403457,0.35180798,47739.0,47738.0,0.33738012]
[1641081403656,0.35180798,47739.0,47738.0,1.10738012]
[1641081403857,0.25927351,47745.0,47738.0,1.10738012]
[1641081404056,0.25927351,47745.0,47738.0,1.09738012]
[1641081404256,0.25927351,47745.0,47739.0,0.00027387]
[1641081404855,0.25927351,47745.0,47740.0,0.337088]
[1641081405258,0.33403599,47742.0,47741.0,0.00023735]
[1641081405918,0.33403599,47742.0,47738.0,0.00029212]
[1641081410871,0.33403599,47742.0,47739.0,0.337088]
[1641081411171,0.33403599,47742.0,47740.0,0.00025561]
[1641081411973,0.33416458,47742.0,47740.0,0.00025561]
[1641081412179,0.54016657,47742.0,47740.0,0.00025561]
[1641081413116,0.337088,47741.0,47740.0,0.00025561]
[1641081417558,0.337088,47741.0,47738.0,0.00029212]
[1641081417757,0.052382,47740.0,47738.0,0.00029212]
[1641081417955,0.052381,47740.0,47738.0,0.00029212]
[1641081418361,0.00136658,47742.0,47738.0,0.00029212]
[1641081418756,0.00012859,47742.0,47741.0,2.15827368]
[1641081418958,0.00012859,47742.0,47741.0,2.49536168]
[1641081419159,8.59e-06,47742.0,47741.0,2.50064857]
[1641081419356,8.59e-06,47742.0,47741.0,2.54917099]
[1641081419756,4.363e-05,47756.0,47741.0,3.66717099]
[1641081419962,4.363e-05,47756.0,47751.0,0.10469538]
[1641081420158,4.363e-05,47756.0,47755.0,0.337088]
[1641081420359,4.363e-05,47756.0,47755.0,0.65968618]
[1641081420618,4.363e-05,47756.0,47755.0,0.70968618]
[1641081420815,4.363e-05,47756.0,47755.0,0.387088]
[1641081421018,4.363e-05,47756.0,47755.0,0.80430325]
[1641081421220,4.363e-05,47756.0,47755.0,0.77547264]
[1641081422218,4.363e-05,47756.0,47755.0,0.7961147]
[1641081422418,4.363e-05,47756.0,47755.0,0.77494531]
[1641081422621,4.363e-05,47756.0,47755.0,0.40600374]
[1641081422622,0.0001717,47756.0,47755.0,0.40600374]
[1641081423319,0.27234847,47756.0,47755.0,0.42504481]
[1641081423620,0.0001717,47756.0,47755.0,0.40440275]
[1641081424359,0.0001717,47756.0,47755.0,1.10332312]
[1641081424557,0.0001717,47756.0,47755.0,1.08428205]
[1641081425360,0.0001717,47756.0,47755.0,1.10364169]
[1641081425562,0.0001717,47756.0,47755.0,1.08472132]
[1641081425760,0.0001717,47756.0,47755.0,0.40472132]
[1641081426362,0.0001717,47756.0,47755.0,1.31682718]
[1641081426563,0.0001717,47756.0,47755.0,1.29746754]
[1641081427365,0.0001717,47756.0,47755.0,1.31886007]
[1641081427563,0.0001717,47756.0,47755.0,1.29792627]
[1641081428021,0.0001717,47756.0,47755.0,0.40792627]
[1641081428217,0.0001717,47756.0,47755.0,0.07083827]
[1641081428416,0.3372597,47756.0,47755.0,0.06864724]
[1641081429314,0.3372597,47756.0,47755.0,0.06364724]
[1641081429516,0.3372597,47756.0,47755.0,0.04327574]
[1641081434376,0.3372597,47756.0,47755.0,0.03827574]
[1641081436246,0.3380597,47756.0,47755.0,0.03827574]
[1641081441269,0.03827574,47755.0,47744.0,0.052368]
[1641081441470,1.18,47754.0,47742.0,0.55930043]
[1641081441664,0.052378,47749.0,47742.0,0.55930043]
[1641081441864,0.052378,47749.0,47740.0,0.68573123]
[1641081441865,0.052385,47747.0,47740.0,0.68573123]
[1641081442064,0.052385,47747.0,47736.0,0.19914]
[1641081442265,0.25023109,47743.0,47736.0,0.19914]
[1641081442463,0.25023109,47743.0,47737.0,9.129e-05]
[1641081442865,0.30261509,47743.0,47737.0,9.129e-05]
[1641081443518,0.0001157,47742.0,47737.0,9.129e-05]
[1641081444518,0.0001157,47742.0,47741.0,2.437088]
[1641081444816,0.0001157,47742.0,47741.0,2.56371654]
[1641081445016,0.0001157,47742.0,47741.0,2.61608554]
[1641081445218,0.00084363,47756.0,47746.0,0.01825353]
[1641081445417,0.00084363,47756.0,47751.0,0.03827574]
[1641081445615,0.00084363,47756.0,47749.0,0.00122762]
[1641081445616,7.574e-05,47755.0,47754.0,2.437088]
[1641081446019,0.00024006,47755.0,47754.0,2.437088]
[1641081446217,0.00024006,47755.0,47754.0,0.337088]
[1641081446417,0.00024006,47755.0,47754.0,0.61060893]
[1641081446616,0.00024006,47755.0,47754.0,0.64888467]
[1641081446864,0.00024006,47755.0,47754.0,0.61060893]
[1641081447263,0.00024006,47755.0,47754.0,1.85060893]
[1641081447464,0.00024006,47755.0,47754.0,1.86874634]
[1641081447665,0.00024006,47755.0,47754.0,1.85047749]
[1641081447865,0.00024006,47755.0,47754.0,1.88875323]
[1641081448268,0.00024006,47755.0,47754.0,2.74875323]
[1641081448465,0.00024006,47755.0,47754.0,2.76970412]
[1641081448668,0.00024006,47755.0,47754.0,2.75156671]
[1641081449468,0.00024006,47755.0,47754.0,2.76993616]
[1641081450269,0.00024006,47755.0,47754.0,2.73061582]
[1641081450533,0.00024006,47755.0,47754.0,2.75077085]
[1641081451124,0.00024006,47755.0,47754.0,1.89077085]
[1641081451527,0.21024006,47755.0,47754.0,1.90896382]
[1641081451726,0.21024006,47755.0,47754.0,0.64880879]
[1641081452226,0.21024006,47755.0,47754.0,1.59880879]
[1641081452426,0.21024006,47755.0,47754.0,1.62030877]
[1641081452627,0.0002,47758.0,47757.0,2.17935574]
[1641081452827,0.0002,47758.0,47757.0,2.65471948]
[1641081453029,0.0002,47758.0,47757.0,2.55471948]
[1641081453427,0.0002,47758.0,47757.0,2.57432487]
[1641081454470,0.0002,47758.0,47757.0,2.5950183]
[1641081454770,0.0002,47758.0,47757.0,2.57541291]
[1641081455571,0.0002,47758.0,47757.0,3.14466998]
[1641081455972,0.0002,47758.0,47757.0,3.81631498]
[1641081456172,0.0002,47758.0,47757.0,2.72606309]
[1641081456476,0.0002,47758.0,47757.0,2.74806298]
[1641081456673,0.0002,47758.0,47757.0,2.72671937]
[1641081456873,0.0002,47758.0,47757.0,2.82671937]
[1641081457376,0.00880319,47766.0,47762.0,1.1192285]
[1641081457575,0.00720319,47766.0,47765.0,2.46536374]
[1641081457773,0.00560319,47766.0,47765.0,2.56536374]
[1641081458031,0.0003,47777.0,47771.0,2.09]
[1641081458223,0.0003,47777.0,47771.0,2.64004834]
[1641081458921,0.0003,47772.0,47771.0,2.64004834]
[1641081459127,0.0003,47777.0,47775.0,2.09]
[1641081459324,0.0001,47778.0,47776.0,2.89123469]
[1641081459522,0.0003,47781.0,47778.0,0.337088]
[1641081459721,0.0023,47789.0,47778.0,0.337088]
[1641081459722,0.0023,47789.0,47781.0,2.0901]
[1641081459921,0.0023,47789.0,47783.0,2.46536374]
[1641081460121,0.00153829,47807.0,47783.0,2.46536374]
[1641081460321,0.0001,47800.0,47784.0,0.30684158]
[1641081460524,0.0009216,47800.0,47785.0,0.336988]
[1641081460721,0.0009216,47800.0,47790.0,0.052316]
[1641081460922,0.0009216,47800.0,47794.0,0.336891]
[1641081460923,0.0008216,47800.0,47794.0,0.336891]
[1641081461123,0.0001216,47800.0,47799.0,0.31123545]
[1641081461325,0.0001,47803.0,47800.0,0.81]
[1641081461525,0.0001,47803.0,47802.0,0.37514874]
[1641081461764,0.0002,47803.0,47802.0,0.37514874]
[1641081462361,0.0002,47803.0,47802.0,0.37504874]
[1641081462563,0.0002,47803.0,47802.0,0.39506676]
[1641081462763,0.0002,47803.0,47802.0,0.68678131]
[1641081462965,0.0002,47803.0,47802.0,0.68668131]
[1641081463164,0.0002,47803.0,47802.0,0.68658131]
[1641081463366,0.0002,47803.0,47802.0,0.68648131]
[1641081463564,0.0002,47803.0,47802.0,0.70453947]
[1641081463863,0.2101,47805.0,47803.0,0.052298]
[1641081463864,0.2004,47805.0,47803.0,0.052298]
[1641081464065,0.2004,47805.0,47804.0,1.17628804]
[1641081464267,0.2004,47805.0,47804.0,0.70848404]
[1641081464465,0.2004,47805.0,47804.0,0.336673]
[1641081464667,0.185,47805.0,47804.0,2.77118011]
[1641081464867,0.185,47805.0,47804.0,3.88918011]
[1641081465065,0.185,47805.0,47804.0,2.82098011]
[1641081465537,0.0001,47805.0,47804.0,0.39035388]
[1641081465826,0.0001,47805.0,47804.0,0.39015388]
[1641081466026,0.0001,47805.0,47804.0,2.75685753]
[1641081466226,0.0001,47805.0,47804.0,2.75675753]
[1641081466525,0.0001,47805.0,47804.0,2.77846009]
[1641081466725,0.0001,47805.0,47804.0,2.19222035]
[1641081466726,0.0002,47805.0,47804.0,2.19222035]
[1641081466928,0.56137164,47824.0,47810.0,0.24521846]
[1641081467125,0.24677688,47822.0,47810.0,0.24521846]
[1641081467330,0.00023736,47813.0,47810.0,0.24511846]
[1641081467527,0.00023736,47813.0,47804.0,0.02180256]
[1641081467528,0.00023736,47813.0,47811.0,0.336796]
[1641081467727,0.0001,47806.0,47804.0,0.02180256]
[1641081467924,0.0001,47806.0,47805.0,0.336796]
[1641081468326,0.0001,47806.0,47805.0,0.35577225]
[1641081468528,0.0001,47806.0,47805.0,0.39404799]
[1641081469126,0.0001,47806.0,47805.0,0.35577225]
[1641081469377,0.0001,47806.0,47805.0,0.37645496]
[1641081469582,0.0001,47806.0,47805.0,0.336796]
[1641081470180,0.0001,47806.0,47805.0,0.37507174]
[1641081470383,0.0001,47806.0,47805.0,0.336796]
[1641081470581,0.0001,47806.0,47795.0,0.0048]
[1641081470882,0.0001,47806.0,47793.0,0.104616]
[1641081470883,9.129e-05,47805.0,47796.0,7.303e-05]
[1641081471081,0.0001,47813.0,47801.0,0.03827574]
[1641081471281,0.0012837,47810.0,47799.0,0.26672396]
[1641081471483,7.303e-05,47809.0,47799.0,0.00510296]
[1641081471681,7.303e-05,47809.0,47800.0,9.129e-05]
[1641081472082,7.303e-05,47809.0,47805.0,0.01911697]
[1641081472282,0.336796,47808.0,47805.0,0.03726917]
[1641081472683,0.336796,47808.0,47792.0,0.00023735]
[1641081472684,0.336796,47808.0,47792.0,0.29739923]
[1641081473023,0.336796,47808.0,47793.0,0.00021909]
[1641081473024,0.36248797,47803.0,47793.0,0.00021909]
[1641081473217,0.68652314,47803.0,47798.0,0.03827574]
[1641081473419,0.336796,47802.0,47791.0,0.00025561]
[1641081473619,0.336796,47802.0,47790.0,0.27754746]
[1641081473620,0.68652314,47803.0,47799.0,0.00010954]
[1641081473820,0.1,47801.0,47791.0,0.00025561]
[1641081474020,0.1,47801.0,47797.0,0.00014606]
[1641081474220,0.336796,47800.0,47791.0,0.00025561]
[1641081474420,0.336796,47800.0,47790.0,0.00027387]
[1641081474421,0.10125902,47798.0,47790.0,0.00027387]
[1641081474820,0.10125902,47798.0,47787.0,0.00032864]
[1641081475120,0.00014821,47797.0,47787.0,0.00032864]
[1641081475320,0.00014821,47797.0,47788.0,0.336796]
[1641081475520,0.00014821,47797.0,47787.0,0.00032864]
[1641081475722,0.00014821,47797.0,47789.0,0.00029212]
[1641081475920,0.00014821,47797.0,47787.0,0.00032864]
[1641081476975,0.00014821,47797.0,47788.0,0.336796]
[1641081477179,0.00014821,47797.0,47787.0,0.00032864]
[1641081477377,0.00014821,47797.0,47789.0,0.00029212]
[1641081477584,0.00014821,47797.0,47787.0,0.00032864]
[1641081477781,0.1,47795.0,47789.0,0.00029212]
[1641081477979,0.00123265,47792.0,47788.0,0.02052314]
[1641081478178,0.336796,47791.0,47789.0,0.00029212]
[1641081478380,0.77663577,47790.0,47789.0,0.00029212]
[1641081478678,0.336796,47790.0,47789.0,0.00029212]
[1641081478878,0.58060986,47800.0,47789.0,0.00029212]
[1641081478879,0.052327,47796.0,47789.0,0.00029212]
[1641081479079,0.336796,47795.0,47789.0,0.00029212]
[1641081479280,0.336796,47795.0,47786.0,0.0003469]
[1641081479480,0.0536213,47799.0,47786.0,0.0003469]
[1641081479681,0.336796,47796.0,47786.0,0.0003469]
[1641081479882,0.0012943,47799.0,47786.0,0.0003469]
[1641081480078,0.01843419,47795.0,47787.0,0.336796]
[1641081480284,0.01843419,47795.0,47792.0,0.03827574]
[1641081480524,0.01843419,47795.0,47794.0,0.03827574]
[1641081481021,0.0012943,47799.0,47794.0,0.03847657]
[1641081481218,0.0012943,47799.0,47794.0,0.00020083]
[1641081481420,0.336796,47796.0,47795.0,0.00018258]
[1641081481621,0.336796,47796.0,47788.0,0.00031038]
[1641081481820,0.0536163,47799.0,47788.0,0.00031038]
[1641081482019,0.3323147,47798.0,47788.0,0.00031038]
[1641081482222,0.336796,47796.0,47788.0,0.00031038]
[1641081482420,0.0012147,47794.0,47786.0,0.0003469]
[1641081482721,0.28029817,47792.0,47786.0,0.0003469]
[1641081482919,0.336796,47791.0,47786.0,0.0003469]
[1641081483320,0.336796,47791.0,47782.0,0.00041993]
[1641081483721,0.336796,47791.0,47781.0,0.01489487]
[1641081483921,0.00014606,47790.0,47777.0,0.27914494]
[1641081484372,0.00012781,47789.0,47778.0,7.303e-05]
[1641081484775,0.00010955,47788.0,47778.0,7.303e-05]
[1641081485172,0.38118181,47790.0,47778.0,7.303e-05]
[1641081485173,9.129e-05,47787.0,47778.0,7.303e-05]
[1641081485674,0.48118181,47790.0,47778.0,7.303e-05]
[1641081485675,0.00021208,47786.0,47778.0,7.303e-05]
[1641081486072,0.00013905,47786.0,47773.0,0.10480446]
[1641081486273,0.00012781,47785.0,47773.0,0.05247081]
[1641081486472,0.00012781,47785.0,47774.0,7.303e-05]
[1641081486673,0.00010955,47784.0,47774.0,7.303e-05]
[1641081487072,0.00013905,47786.0,47774.0,0.32940268]
[1641081487073,9.129e-05,47783.0,47774.0,0.32940268]
[1641081487474,7.303e-05,47782.0,47774.0,0.32940268]
[1641081487673,7.303e-05,47782.0,47775.0,0.336796]
[1641081487873,0.00012781,47785.0,47775.0,0.336796]
[1641081488126,0.00012781,47785.0,47774.0,0.34948937]
[1641081488329,0.05247505,47786.0,47774.0,0.34948937]
[1641081488330,0.00010955,47784.0,47774.0,0.34948937]
[1641081488626,9.129e-05,47783.0,47774.0,0.34948937]
[1641081488825,9.129e-05,47783.0,47780.0,0.00126324]
[1641081489026,7.303e-05,47782.0,47775.0,0.00625578]
[1641081489225,7.303e-05,47782.0,47781.0,0.00125147]
[1641081489426,0.00013905,47786.0,47782.0,0.00523467]
[1641081489627,0.00013905,47786.0,47783.0,0.336796]